Cogmind - Beta 15 @@@ ROGUE MODE // 2025.05.26 @ 21:23:38 Player: Cog on my mind Result: Destroyed by as-57983 with Assembled Heavy Rifle Performance ------------- Evolutions (0) 0 Regions Visited (2) 400 Robots Destroyed (29) 145 Value Destroyed (797) 797 Prototype IDs (4) 80 Alien Tech Used (0) 0 Bonus (-150) -150 TOTAL SCORE: 1272 Bonus ------- Friendly Fire -150 Cogmind --------- Core Integrity 0/250 Matter 157/300 Energy 100/100 System Corruption 0% Temperature Cool (0) Movement Core (50) Location -10/Mines Parts ------- > --- POWER (1) -------- (None) > --- PROPULSION (2) --- (None) > --- UTILITY (2) ------ (None) > --- WEAPON (2) ------- (None) > --- INVENTORY (5) ---- Wheel Hacking Suite Light Assault Rifle Katana Katana Peak State ------------ > --- POWER ------------ Light Nuclear Core > --- PROPULSION ------- Light Treads Light Treads > --- UTILITY ---------- Large Storage Unit Seismic Detector > --- WEAPON ----------- Beamcaster Assault Rifle > --- INVENTORY -------- Ion Engine Light Treads Wheel Wheel Improved Heat Sink High-capacity Storage Unit High-capacity Matter Pod Improved Trap Extractor EM Pulse Gun Medium Laser Light Assault Rifle Light Assault Rifle Missile Launcher Axe [Rating: 15] Favorites ----------- Power Light Nuclear Core Engine Ion Engine Power Core Light Nuclear Core Propulsion Light Treads Treads Light Treads Wheel Wheel Utility Seismic Detector Device Seismic Detector Storage Large Storage Unit Weapon Assault Rifle Energy Gun Medium Laser Ballistic Gun Assault Rifle Launcher Missile Launcher Slashing Weapon Mining Claw Build | -11 -10 -10 ------- Run | Yrd Mat Min Slots Evolved . | . . . Power . | . . . Propulsion . | . . . Utility . | . . . Weapon . | . . . Parts Attached 20 | 7 7 6 Power 4 | 1 2 1 Engine 2 | 1 . 1 Core 2 | . 2 . Reactor . | . . . Propulsion 4 | 2 . 2 Treads 3 | 2 . 1 Leg . | . . . Wheel 1 | . . 1 Hover . | . . . Flight . | . . . Utility 4 | 2 2 . Device 1 | 1 . . Storage 3 | 1 2 . Processor . | . . . Hackware . | . . . Protection . | . . . Artifact . | . . . Weapon 8 | 2 3 3 Energy Gun 2 | 1 . 1 Energy Cannon . | . . . Ballistic Gun 3 | 1 2 . Ballistic Cannon . | . . . Launcher 1 | . . 1 Special Weapon . | . . . Impact Weapon . | . . . Slashing Weapon 2 | . 1 1 Piercing Weapon . | . . . Special Melee Weapon . | . . . Unidentified Prototypes . | . . . Parts Lost 9 | . 1 8 Power 3 | . 1 2 Propulsion 4 | . . 4 Utility . | . . . Weapon 2 | . . 2 Highest Loss Streak 6 | . 1 6 To Critical Strikes . | . . . Average Backups 9 | 2 7 12 Power . | . 1 . Propulsion 2 | 1 2 2 Utility 2 | . 1 4 Weapon 3 | . 2 5 Tool/Special . | . . . Unused Backups 13 | . 2 11 Power 2 | . 2 . Propulsion 1 | . . 1 Utility 5 | . . 5 Weapon 5 | . . 5 Tool/Special . | . . . Average Slot Usage (%) 99 | . 99 99 Engine 4 | . 3 5 Core 9 | . 9 8 Treads 27 | . 28 27 Device 14 | . 14 14 Storage 14 | . 14 14 Energy Gun 13 | . 14 13 Ballistic Gun 13 | . 13 14 Peak Build Rating 15 | 7 10 15 Average Rating 10 | 5 8 13 On Entrance 5 | . 7 10 Naked Turns 1 | . . 1 Heaviest Build 34 | 15 30 34 Greatest Support 40 | 40 40 40 Greatest Overweight (x) 3 | . . 3 Average Overweight (x) . | . . . Largest Inventory Capacity 15 | 8 15 15 Average Capacity 12 | 7 10 14 Most Carried 14 | 4 10 14 Average Carried 9 | 2 7 12 Final Capacity 15 | 8 15 5 Final Carried 10 | 4 10 5 Class Distribution -------------------- 100% | Mutant Dominant Class ---------------- Mutant | -10/Materials Mutant | -10/Mines Resources | -11 -10 -10 ----------- Run | Yrd Mat Min Matter Collected 860 | 233 519 108 Remotely . | . . . Salvage Created 1043 | 66 724 253 Parts 62 | 9 40 13 Haulers Intercepted 2 | . 2 . Recyclers Shooed 2 | . . 2 Parts Field Recycled . | . . . Retrieved Matter . | . . . Parts Self-Destructed . | . . . Prevented . | . . . Kills | -11 -10 -10 ------- Run | Yrd Mat Min Combat Hostiles Destroyed 33 | . 14 19 Guns 17 | . 13 4 AOE 15 | . . 15 Classes Destroyed 8 | 1 4 3 Tunneler 3 | 3 . . Hauler 2 | . 2 . Operator 1 | . 1 . Watcher 1 | . 1 . Swarmer 3 | . . 3 Grunt 18 | . 14 4 Assembled 12 | . . 12 Guerrilla 1 | . . 1 Best Kill Streak 13 | 1 3 13 Combat Bots Only 13 | . 3 13 Max Kills in Single Turn 3 | 1 1 3 Gunslinging . | . . . Exploded 3 | . . 3 Melee . | . . . Uniques/NPCs Destroyed . | . . . Combat | -11 -10 -10 -------- Run | Yrd Mat Min Hostile Shots Fired 101 | . 48 53 Missed 24 | . 7 17 Hits 77 | . 41 36 Projectile 77 | . 41 36 AOE 4 | . . 4 Critical Strikes 2 | . 2 . Damage Taken 1192 | . 524 668 Core 256 | . 101 155 Absorbed by Shields . | . . . Core Remaining (%) 100 | 100 . . Volleys Fired 99 | 5 67 27 Largest 2 | 2 2 2 Hottest 95 | 70 70 95 Shots Fired 185 | 10 134 41 Gun 172 | 10 134 28 Cannon . | . . . Launcher 13 | . . 13 Special . | . . . Kinetic 86 | 5 67 14 Thermal 86 | 5 67 14 Explosive 13 | . . 13 Electromagnetic . | . . . Robot Hit Streak 22 | 4 18 22 Robot Miss Streak 4 | 1 3 4 Penetration Max . | . . . Secondary Targets 1 | . . 1 Max Gunslinging Chain 1 | . . 1 Shots Hit Robots 127 | 5 99 23 Core Hits 75 | 3 36 36 Critical Kills . | . . . Critical Parts Destroyed . | . . . Critical Strikes 4 | . 4 . Burn 4 | . 4 . Melee Attacks 1 | . 1 . Impact . | . . . Slashing 1 | . 1 . Piercing . | . . . Sneak Attacks . | . . . Combat Hostiles . | . . . Follow-up Attacks . | . . . Damage Inflicted 2992 | 89 1323 1580 Guns 1766 | 89 1320 357 Cannons . | . . . Explosions 1223 | . . 1223 Melee . | . . . Ramming 3 | . 3 . Kinetic 760 | 40 597 123 Thermal 1006 | 49 723 234 Explosive 1223 | . . 1223 Electromagnetic . | . . . Impact . | . . . Slashing . | . . . Piercing . | . . . Highest Corruption . | . . . Average Corruption . | . . . Corruption Purged . | . . . Corruption Blocked . | . . . Overload Shots . | . . . Overflow Damage 43 | . . 43 Projectiles . | . . . Explosions 43 | . . 43 Melee . | . . . Knockbacks . | . . . Impact . | . . . Kinetic . | . . . Secondary . | . . . Self-Inflicted Damage 38 | . . 38 Shots 1 | . . 1 Rammed 2 | . 2 . Targets Rammed 2 | . 2 . Kicked . | . . . Crushed . | . . . Highest Temperature 228 | 27 141 228 Average Temperature 55 | 11 47 97 Received Heat Transfer 434 | . 330 104 Siege Activations . | . . . Martial Activations . | . . . Shielding Activations . | . . . Robots Disrupted . | . . . Combat Hostiles . | . . . Robots Corrupted . | . . . Combat Hostiles . | . . . Parts Fried . | . . . Impact Corruptions . | . . . Robots Melted 1 | . 1 . Combat Hostiles 1 | . 1 . Parts Melted 2 | . 1 1 Heat Transferred 2923 | 148 2368 407 Parts Sabotaged . | . . . Parts Stolen . | . . . Parts Stripped . | . . . Power Chain Reactions . | . . . Alert | -11 -10 -10 ------- Run | Yrd Mat Min Maximum Alert Level . | . . . Low Security (%) 100 | 100 100 100 Level 1 . | . . . Level 2 . | . . . Level 3 . | . . . Level 4 . | . . . Level 5 . | . . . High Security . | . . . Max Security . | . . . Peak Influence 179 | 5 179 69 Initial 29 | . . 29 Average 46 | . 77 13 Influence Increases 706 | 15 461 230 Destroy 0b10 Robot/C 420 | . 280 140 Destroy 0b10 Robot/NC 35 | 15 20 . Destroy Leader 106 | . 76 30 Successful Hack 23 | . 23 . Select Force Hacks 30 | . 30 . Disable Machine 30 | . 30 . Destroy Structure 62 | . 2 60 Influence Decreases 706 | 15 385 306 Entered New Map 47 | . . 47 Time Decay 590 | 15 375 200 Lost Part 69 | . 10 59 Squads Dispatched 5 | . 4 1 Investigation 3 | . 2 1 Extermination . | . . . Reinforcement 2 | . 2 . Assault . | . . . Garrison . | . . . Intercept . | . . . Searches Triggered . | . . . Construction Impeded . | . . . Haulers Reinforced . | . . . Active Scanning Responses . | . . . Cargo Convoy Interrupts . | . . . Stealth | -11 -10 -10 --------- Run | Yrd Mat Min Distress Signals 3 | . 3 . Communications Jammed . | . . . Distress Signals . | . . . Times Spotted 45 | . 23 22 Peak Tracking Total 17 | . 3 17 Tactical Retreats . | . . . Traps | -11 -10 -10 ------- Run | Yrd Mat Min Traps Triggered 2 | . 1 1 Indirectly . | . . . Trap Hack Attempts . | . . . Triggered . | . . . Disarmed . | . . . Reprogrammed . | . . . Reused . | . . . Traps Extracted . | . . . Installed . | . . . Triggered . | . . . Machines | -11 -10 -10 ---------- Run | Yrd Mat Min Machines Disabled 2 | . 2 . Max in Single Turn 1 | . 1 . Machines Repaired . | . . . Machines Dismantled . | . . . Machines Sabotaged . | . . . Overloaded Fab Kills . | . . . Hacking | -11 -10 -10 --------- Run | Yrd Mat Min Machines Accessed 10 | . 7 3 Terminals 7 | . 6 1 Fabricators . | . . . Repair Stations . | . . . Recycling Units 1 | . 1 . Scanalyzers . | . . . Garrison Access . | . . . Total Hacks 28 | . 25 3 Successful 15 | . 13 2 Failed 12 | . 11 1 Catastrophic 1 | . 1 . Database Lockouts 1 | . 1 . Manual 14 | . 12 2 Terminals 25 | . 24 1 Fabricators . | . . . Repair Stations . | . . . Recycling Units 1 | . 1 . Scanalyzers . | . . . Garrison Access . | . . . Terminal Hacks 11 | . 9 2 Robot Analysis 3 | . 3 . Prototype ID Bank 3 | . 3 . Open Door 2 | . . 2 Branch Access Points 1 | . 1 . Terminal Index 1 | . 1 . Hauler Manifests 1 | . 1 . Fabricator Hacks . | . . . Repair Station Hacks . | . . . Recycling Unit Hacks . | . . . Scanalyzer . | . . . Garrison Access Hacks . | . . . Unauthorized Hacks 4 | . 4 . Terminals 3 | . 3 . Track 1 | . 1 . Botnet 2 | . 2 . Fabricators . | . . . Repair Stations . | . . . Recycling Units 1 | . 1 . Tunnel 1 | . 1 . Scanalyzers . | . . . Garrison Access . | . . . Data Cores Recovered . | . . . Used . | . . . Hacking Detections 7 | . 6 1 Full Trace Events . | . . . Feedback Events . | . . . Feedback Blocked . | . . . Robot Schematics Acquired . | . . . Robots Built . | . . . Authchips . | . . . Time . | . . . Total Robot Build Rating . | . . . Part Schematics Acquired . | . . . Parts Built . | . . . Authchips . | . . . Time . | . . . Total Part Build Rating . | . . . Parts Repaired . | . . . Time . | . . . Parts Recycled . | . . . Recycled Matter . | . . . Retrieved Matter . | . . . Retrieved Components . | . . . Parts Scanalyzed . | . . . Part Schematics Acquired . | . . . Parts Damaged . | . . . Bothacking | -11 -10 -10 ------------ Run | Yrd Mat Min Used RIF Installer . | . . . Robots Hacked . | . . . Non-combat . | . . . Combat . | . . . Robot Hacks Applied . | . . . Relay Couplers Released . | . . . Fabnet Peak Effective % . | . . . Robots Rewired . | . . . Allies Hacked . | . . . Hacks Repelled . | . . . Allies | -11 -10 -10 -------- Run | Yrd Mat Min Total Allies . | . . . Largest Group . | . . . Highest-Rated Group . | . . . Highest-Rated Ally . | . . . Total Orders . | . . . Ally Attacks . | . . . Total Damage . | . . . Kills . | . . . Allies Corrupted . | . . . Allies Melted . | . . . Intel | -11 -10 -10 ------- Run | Yrd Mat Min Active Infowar (turns) 2115 | 69 1165 881 Seismic 2115 | 69 1165 881 Robot Analysis Total 3 | . 3 . Derelict Logs Recovered 2 | . . 2 Drone Launches . | . . . Drone Recoveries . | . . . Exploration | -11 -10 -10 ------------- Run | Yrd Mat Min Turns Passed 2204 | 157 1165 882 Spaces Moved 1130 | 85 551 494 Core 11 | 10 . 1 Treads 1109 | 75 551 483 Legs . | . . . Wheels 10 | . . 10 Hover . | . . . Flight . | . . . Fastest Speed 50 | 50 160 50 Average Speed 158 | 147 160 158 Slowest Speed 160 | 160 160 160 Overloaded Moves . | . . . Propulsion Burnouts . | . . . Robots Hopped . | . . . Potential Cave-ins . | . . . Cave-ins Triggered . | . . . Exploration Rate (%) 54 | 4 69 90 Regions Visited 2 Branch Regions 1 Pre-discovered Areas 1 | . 1 . Known Exits Taken 1 | . 1 . Unknown Exits Taken 1 | 1 . . Scrap Searched 1 | . . 1 Spaces Dug 33 | . 1 32 Terrain Destroyed 98 | . 1 97 Melee 1 | . 1 . Projectile . | . . . AOE 97 | . . 97 Terrain Rammed . | . . . Walls Destroyed . | . . . Machines Disabled . | . . . Actions | -11 -10 -10 --------- Run | Yrd Mat Min Total 1349 | 104 699 546 Wait 66 | 4 55 7 Move 1128 | 84 550 494 Hop . | . . . Pick Up 21 | 4 9 8 Fast Attach 7 | 7 . . Attach 5 | . 1 4 Detach . | . . . Swap 11 | . 7 4 Drop 9 | . 7 2 Fire 99 | 5 67 27 Melee 1 | . 1 . Ram . | . . . Kick . | . . . Crush 2 | . 2 . Escape Stasis . | . . . Rewire . | . . . Trap . | . . . Miscellaneous . | . . . Route ------- -11/Scrapyard -10/Materials (discovered 2 exits: [*Mat] / *Min) -10/Mines (discovered 3 exits: [*Mat x2] / [*Sub]) History --------- Turn | Location | Event 3 | -11/Scrapyard | Discovered new exit (range 16) 158 | -11/Scrapyard | Entered Materials 311 | -10/Materials | Build established: Mutant 351 | -10/Materials | Central database locked down 752 | -10/Materials | Identified exit to Mines 835 | -10/Materials | Discovered new exit (range 3) 1323 | -10/Materials | Entered Mines 1337 | -10/Mines | Met a Derelict who couldn't figure out how to use a Trap Extractor 1410 | -10/Mines | Learned location of 1 exit from Materials 1641 | -10/Mines | Received a Rocket Launcher from a helpful Derelict 2004 | -10/Mines | Discovered new exit (range 12) 2050 | -10/Mines | Met a Derelict shopkeep closing up shop 2068 | -10/Mines | Discovered new exit (range 10) 2127 | -10/Mines | Discovered new exit (range 11) 2163 | -10/Mines | Assembled infested the area 2168 | -10/Mines | Assisted by a Guerilla fighting off Assembled 2178 | -10/Mines | Core integrity fell below 50% 2203 | -10/Mines | Core integrity fell below 20% 2204 | -10/Mines | Released all parts (3) 2205 | -10/Mines | Destroyed by as-57983 with Assembled Heavy Rifle Last Messages --------------- 02180_ Lgt. Treads destroyed. 02183_ The unstable cave ceiling collapses. 02186_ as-39758 destroyed. 02186_ as-00920 destroyed. 02188_ The unstable cave ceiling collapses. 02189_ TH-6N2(h) destroyed. 02189_ Missile Launcher destroyed. 02189_ Destroyed Missile Launcher. 02192_ The unstable cave ceiling collapses. 02201_ C-30 ARC bursts open, deploying its payload. 02201_ D-53 Grenadier unfolds itself. 02201_ Lgt. Treads destroyed. 02201_ as-64778 destroyed. 02203_ Assault Rifle destroyed. 02203_ Ion Engine destroyed. 02204_ Wheel destroyed. 02204_ Released Lrg. Storage Unit. 02204_ Released Seismic Detector. 02204_ Released Axe. Map ----- +----------------------------------------------------+ | | | | | | | | | | | | | | | | | | | | | | | ?????????????????????????????????????????????????? | | ????????????????????????????????????########?????? | | ????????????????????????????????#### #?????? | | ????????##???????######????###### # # ? | | ???????## ##?????# #????# | | ???????? ##????#